Workbook

Sheet Web form
A1: SabreCom-300 System option selector and part number configurator | C1: v2.1 | D1: 2024-09-03 | F1: Hide | G1: Hide | H1: Hide | I1: Hide | J1: Hide
A2: Click yellow cell. Then click arrow that appears to the right to choose an option. | F2: for | G2: for | H2: for | I2: for | J2: for
A3: Options with * are considered "default" options. | F3: Customer | G3: Customer | H3: Customer | I3: Customer | J3: Customer
A4: Part number and part description text will automatically fill in based on your selections. | F4: Use | G4: Use | H4: Use | I4: Use | J4: Use
A5: All options must be selected to generate a valid configuration and part number.
A6: Then submit this configuration worksheet to the email address below for a quote or further discussion with our technical sales team.
A7: sales@diamondsystems.com
D8: Part number builder text | E8: Part description builder text | F8: Cost | G8: Margin | H8: Price
A9: Base model (no selection required) | D9: SC300- | E9: SabreCom-300, | F9: 1000 | G9: 0.65 | H9: =ROUND(F9/(1-G9),0) -> 2857
A11: =Options!A1 -> SBC | B11: Venus 776KL-20 | D11: =VLOOKUP(B11,Options!A:C,2,FALSE) -> VNS776-20 | E11: =VLOOKUP(B11,Options!A:C,3,FALSE) -> i7-7600U CPU, 20GB RAM, | F11: =VLOOKUP(B11,Options!A:F,4,FALSE) -> 1200 | G11: =VLOOKUP(B11,Options!A:F,5,FALSE) -> 0.55 | H11: =VLOOKUP(B11,Options!A:F,6,FALSE) -> 2667
A13: =Options!G1 -> Operating system | B13: *Linux 64-bit | D13: =VLOOKUP(B13,Options!G:I,2,FALSE) -> -LNX | E13: =VLOOKUP(B13,Options!G:I,3,FALSE) -> Linux, | F13: =VLOOKUP(B13,Options!G:L,4,FALSE) -> 75 | G13: =VLOOKUP(B13,Options!G:L,5,FALSE) -> 0.5 | H13: =VLOOKUP(B13,Options!G:L,6,FALSE) -> 150
A15: =Options!M1 -> Ethernet switch | B15: 8 Gbe copper ports | D15: =VLOOKUP(B15,Options!M:O,2,FALSE) -> -EG8 | E15: =VLOOKUP(B15,Options!M:R,3,FALSE) -> 8-Port Gbe Switch, | F15: =VLOOKUP(B15,Options!M:R,4,FALSE) -> 191 | G15: =VLOOKUP(B15,Options!M:R,5,FALSE) -> 0.55 | H15: =VLOOKUP(B15,Options!M:R,6,FALSE) -> 424
A17: =Options!S1 -> Switch firmware | B17: Webstax Layer 2+ | D17: =VLOOKUP(B17,Options!S:X,2,FALSE) -> -L2 | E17: =VLOOKUP($B17,Options!$S:$X,3,FALSE) -> Layer 2+ FW, | F17: =VLOOKUP($B17,Options!$S:$X,4,FALSE) -> 0 | G17: =VLOOKUP($B17,Options!$S:$X,5,FALSE) -> 0.45 | H17: =VLOOKUP($B17,Options!$S:$X,6,FALSE) -> 0
A19: =Options!Y1 -> Power supply | B19: *MIL with isolation | D19: =VLOOKUP(B19,Options!Y:AD,2,FALSE) -> -J | E19: =VLOOKUP(B19,Options!Y:AD,3,FALSE) -> MIL Iso Power, | F19: =VLOOKUP(B19,Options!Y:AD,4,FALSE) -> 964 | G19: =VLOOKUP(B19,Options!Y:AD,5,FALSE) -> 0.5 | H19: =VLOOKUP(B19,Options!Y:AD,6,FALSE) -> 1928
A21: =Options!AE1 -> Integrated mass storage | B21: 512GB | D21: =VLOOKUP(B21,Options!AE:AJ,2,FALSE) -> 5 | E21: =VLOOKUP(B21,Options!AE:AJ,3,FALSE) -> 512GB SSD | F21: =VLOOKUP(B21,Options!AE:AJ,4,FALSE) -> 76 | G21: =VLOOKUP(B21,Options!AE:AJ,5,FALSE) -> 0.5 | H21: =VLOOKUP(B21,Options!AE:AJ,6,FALSE) -> 152
A23: =Options!AK1 -> Expansion I/O | B23: *My system has no additional I/O requirements | D23: =VLOOKUP(B23,Options!AK:AM,2,FALSE) -> -01 | E23: =VLOOKUP(B23,Options!AK:AM,3,FALSE) ->  | F23: 0 | G23: 0.5 | H23: =F23/(1-G23) -> 0 | I23: Enter total cost for custom I/O
I24: in green cell (boards + cables)
B25: <Enter additional I/O details here. Cell will expand as needed.> | F25: =IF(B15=Options!M3,'Web form'!F45,IF('Web form'!B15=Options!M4,'Web form'!F44,'Web form'!F46)) -> 1512 | G25: 0.5 | H25: =ROUND(F25/(1-G25),0) -> 3024 | I25: Internal cables
A27: Your system part number: | B27: =_xlfn.CONCAT(D9:D23) -> SC300-VNS776-20-LNX-EG8-L2-J5-01 | F27: 200 | H27: 400 | I27: Assembly / test labor
A28: Your system description: | B28: =_xlfn.CONCAT(E9:E23) -> SabreCom-300, i7-7600U CPU, 20GB RAM, Linux, 8-Port Gbe Switch, Layer 2+ FW, MIL Iso Power, 512GB SSD | F28: =SUM(F9:F27) -> 5218 | H28: =SUM(H9:H27) -> 11602 | I28: Calculated price
F29: BOM cost | H29: 1000 | I29: Bonus
H30: =MROUND(H29+H28,50) -> 12600 | I30: Qty 1 price end user
H31: =H30-F28 -> 7382 | I31: Margin $
H32: =H31/H30 -> 0.5858730159 | I32: Margin %
H33: =LEN(B28) -> 101 | I33: Description length
F35: Cables | I35: 6 | J35: 10
F36: Est cost | G36: Description | H36: Conn cost | I36: Pins | J36: Cables
F37: =H37+I37*$I$35+J37*$J$35 -> 84 | G37: Power in | H37: 50 | I37: 4 | J37: 1
F38: 534 | G38: IO 1 | H38: 100 | I38: 64 | J38: 5
F39: 240 | G39: Expansion | H39: 100 | I39: 20 | J39: 2
F40: 302 | G40: Switch 8 ports | H40: 100 | I40: 27 | J40: 4
F41: 302 | G41: Switch 8 ports | H41: 100 | I41: 27 | J41: 4
F42: 174 | G42: HDMI | H42: 50 | I42: 19 | J42: 1
F43: =H43+I43*$I$35+J43*$J$35 -> 178 | G43: USB 3.0 | H43: 50 | I43: 18 | J43: 2
F44: =SUM(F37:F43) -> 1814 | G44: Total 16 port switch + exp | I44: =SUM(I37:I43) -> 179
F45: =F44-F41 -> 1512 | G45: Total 8 port switch + exp
F46: =F44-F39 -> 1574 | G46: Total 16 port switch no exp
F47: =F44-F39-F41 -> 1272 | G47: Total 8 port switch no exp

Sheet Options (hidden)
A1: SBC | B1: SBC | C1: SBC | D1: SBC | E1: SBC | F1: SBC | G1: Operating system | H1: OS | I1: OS | J1: OS | K1: OS | L1: OS | M1: Ethernet switch | N1: Switch | O1: Switch | P1: Switch | Q1: Switch | R1: Switch | S1: Switch firmware | T1: Switch FW | U1: Switch FW | V1: Switch FW | W1: Switch FW | X1: Switch FW | Y1: Power supply | Z1: Power | AA1: Power | AB1: Power | AC1: Power | AD1: Power | AE1: Integrated mass storage | AF1: SSD | AG1: SSD | AH1: SSD | AI1: SSD | AJ1: SSD | AK1: Expansion I/O | AL1: Expansion | AM1: Expansion
A2: Choose one: | G2: Choose one: | M2: Choose one: | S2: Choose one: | Y2: Choose one: | AE2: Choose one: | AK2: Choose one:
A3: Venus 776KL-20 | B3: VNS776-20 | C3: i7-7600U CPU, 20GB RAM, | D3: 1200 | E3: 0.55 | F3: =ROUND(D3/(1-E3),0) -> 2667 | G3: *Linux 64-bit | H3: -LNX | I3: Linux, | J3: 75 | K3: 0.5 | L3: =ROUND(J3/(1-K3),0) -> 150 | M3: 8 Gbe copper ports | N3: -EG8 | O3: 8-Port Gbe Switch, | P3: 191 | Q3: 0.55 | R3: =ROUND(P3/(1-Q3),0) -> 424 | S3: Webstax Layer 2+ | T3: -L2 | U3: Layer 2+ FW, | V3: 0 | W3: 0.45 | X3: =ROUND(V3/(1-W3),0) -> 0 | Y3: *MIL with isolation | Z3: -J | AA3: MIL Iso Power, | AB3: 964 | AC3: 0.5 | AD3: =ROUND(AB3/(1-AC3),0) -> 1928 | AE3: *1TB | AF3: 1 | AG3: 1TB SSD | AH3: 135 | AI3: 0.5 | AJ3: =ROUND(AH3/(1-AI3),0) -> 270 | AK3: *My system has no additional I/O requirements | AL3: -01
A4: Jasper 1185GRE-32 | B4: JSP1185-32 | C4: i7-1185GRE CPU, 32GB RAM, | D4: 1827 | E4: 0.45 | F4: =ROUND(D4/(1-E4),0) -> 3322 | G4: Windows 10 64-bit | H4: -W10 | I4: Win 10, | J4: =139+J3 -> 214 | K4: 0.5 | L4: =ROUND(J4/(1-K4),0) -> 428 | M4: 16 Gbe copper ports | N4: -EG16 | O4: 16-Port Gbe Switch, | P4: 505 | Q4: 0.5 | R4: 1010 | S4: No Ethernet switch | V4: 0 | W4: 0.45 | X4: =ROUND(V4/(1-W4),0) -> 0 | Y4: MIL without isolation | Z4: -N | AA4: MIL Power, | AB4: 648 | AC4: 0.5 | AD4: =ROUND(AB4/(1-AC4),0) -> 1296 | AE4: 2TB | AF4: 2 | AG4: 2TB SSD | AH4: 237 | AI4: 0.5 | AJ4: =ROUND(AH4/(1-AI4),0) -> 474 | AK4: My system requires additional I/O (list below) | AL4: -XX (requires factory review) | AM4: (requires factory review)
A5: Jasper 1185G7E-64 | B5: JSP1185G7E-64 | C5: i7-1185G7E CPU, 64GB RAM, | D5: 1479 | E5: 0.45 | F5: =ROUND(D5/(1-E5),0) -> 2689 | M5: No Ethernet switch | N5: -EG0 | O5: No Ethernet Switch, | P5: 0 | Q5: 0.5 | R5: 0 | Y5: MIL-STD-461 filter | Z5: -F | AA5: 1461 Filter, | AB5: 150 | AC5: 0.5 | AD5: =ROUND(AB5/(1-AC5),0) -> 300 | AE5: 512GB | AF5: 5 | AG5: 512GB SSD | AH5: 76 | AI5: 0.5 | AJ5: 152
A6: Jasper 1365URE-64 | B6: JSP1365-64 | C6: i7-1365URE CPU, 64GB RAM, | D6: 2285 | E6: 0.45 | F6: 4155 | AE6: 128GB | AF6: 8 | AG6: 128GB SD | AH6: 30 | AI6: 0.5 | AJ6: 60
